fUSD/lending_fUSD_20240424
["ID","MTS","AMOUNT","RATE_DAILY","PERIOD"]
[323404057,1713971477446,-500.0,0.00012053,2]
[323404058,1713971477458,-500.0,0.00012053,2]
[323404059,1713971477469,-500.0,0.00012053,2]
[323404060,1713971477479,-500.0,0.00012053,2]
[323404061,1713971477490,-500.0,0.00012053,2]
[323404062,1713971477500,-500.0,0.00012053,2]
[323404063,1713971477510,-500.0,0.00012053,2]
[323404064,1713971477522,-323.73,0.00012053,2]
[323404065,1713971477758,-1172.99,0.00012053,2]
[323404066,1713971477769,-271.08,0.00012053,2]
[323404067,1713971477780,-500.0,0.00012053,2]
[323404068,1713971477789,-243.46,0.00012053,2]
[323404069,1713971477799,-500.0,0.00012053,2]
[323404070,1713971477808,-484.08848146,0.00012053,2]
[323404071,1713971477818,-1195.92,0.00012053,2]
[323404072,1713971477827,-535.27,0.00012053,2]
[323404073,1713971477836,-500.0,0.00012053,2]
[323404074,1713971477846,-500.0,0.00012053,2]
[323404075,1713971477856,-596.33,0.00012053,2]
[323404076,1713971477865,-199.70481969,0.00012053,2]
[323404077,1713971477875,-500.0,0.00012053,2]
[323404078,1713971477884,-500.0,0.00012053,2]
[323404079,1713971477893,-500.0,0.00012053,2]
[323404080,1713971477903,-500.0,0.00012053,2]
[323404081,1713971477912,-500.0,0.00012053,2]
[323404082,1713971477922,-365.49,0.00012053,2]
[323404083,1713971477931,-500.0,0.00012053,2]
[323404084,1713971477941,-500.0,0.00012053,2]
[323404085,1713971477950,-500.0,0.00012053,2]
[323404086,1713971477960,-500.0,0.00012053,2]
[323404087,1713971477969,-500.0,0.00012053,2]
[323404088,1713971477978,-500.0,0.00012053,2]
[323404089,1713971477988,-500.0,0.00012053,2]
[323404090,1713971477998,-500.0,0.00012053,2]
[323404091,1713971478007,-500.0,0.00012053,2]
[323404092,1713971478017,-435.04655909,0.00012053,2]
[323404093,1713971478029,-500.0,0.00012053,2]
[323404094,1713971478038,-500.0,0.00012053,2]
[323404095,1713971478047,-500.0,0.00012053,2]
[323404096,1713971478056,-500.0,0.00012053,2]
[323404097,1713971478065,-500.0,0.00012053,2]
[323404098,1713971478075,-500.0,0.00012053,2]
[323404099,1713971478086,-500.0,0.00012053,2]
[323404100,1713971478096,-500.0,0.00012053,2]
[323404101,1713971478105,-500.0,0.00012053,2]
[323404102,1713971478115,-500.0,0.00012053,2]
[323404103,1713971478125,-500.0,0.00012053,2]
[323404104,1713971478136,-500.0,0.00012053,2]
[323404105,1713971478145,-500.0,0.00012053,2]
[323404106,1713971478155,-500.0,0.00012053,2]
[323404107,1713971478166,-580.8848286,0.00012053,2]
[323404108,1713971478176,-500.0,0.00012053,2]
[323404109,1713971478186,-592.76,0.00012053,2]
[323404110,1713971478196,-500.0,0.00012053,2]
[323404111,1713971478205,-500.0,0.00012053,2]
[323404112,1713971478215,-500.0,0.00012053,2]
[323404113,1713971478226,-500.0,0.00012053,2]
[323404114,1713971478236,-500.0,0.00012053,2]
[323404115,1713971478246,-500.0,0.00012053,2]
[323404116,1713971478255,-500.0,0.00012053,2]
[323404117,1713971478266,-500.0,0.00012053,2]
[323404118,1713971478277,-500.0,0.00012053,2]
[323404119,1713971478286,-500.0,0.00012053,2]
[323404120,1713971478295,-1027.63,0.00012053,2]
[323404121,1713971478305,-500.0,0.00012053,2]
[323404122,1713971478315,-500.0,0.00012053,2]
[323404123,1713971478327,-500.0,0.00012053,2]
[323404124,1713971478337,-500.0,0.00012053,2]
[323404125,1713971478347,-500.0,0.00012053,2]
[323404126,1713971478356,-500.0,0.00012053,2]
[323404127,1713971478366,-500.0,0.00012053,2]
[323404128,1713971478377,-500.0,0.00012053,2]
[323404129,1713971478386,-500.0,0.00012053,2]
[323404130,1713971478395,-762.98,0.00012053,2]
[323404131,1713971478405,-500.6,0.00012053,2]
[323404132,1713971478415,-500.0,0.00012053,2]
[323404133,1713971478425,-500.0,0.00012053,2]
[323404134,1713971478434,-500.0,0.00012053,2]
[323404135,1713971478443,-500.0,0.00012053,2]
[323404136,1713971478453,-500.0,0.00012053,2]
[323404137,1713971478464,-500.0,0.00012053,2]
[323404138,1713971478474,-500.0,0.00012053,2]
[323404139,1713971478484,-500.0,0.00012053,2]
[323404140,1713971478494,-500.0,0.00012053,2]
[323404141,1713971478504,-885.68,0.00012053,2]
[323404142,1713971478514,-1123.38,0.00012053,2]
[323404143,1713971478526,-519.32,0.00012053,2]
[323404144,1713971478535,-500.0,0.00012053,2]
[323404145,1713971478545,-609.91631097,0.00012053,2]
[323404146,1713971478555,-500.0,0.00012053,2]
[323404147,1713971478565,-228.09,0.00012053,2]
[323404148,1713971478575,-646.14,0.00012053,2]
[323404149,1713971478584,-500.0,0.00012054,2]
[323404150,1713971478594,-500.0,0.00012054,2]
[323404151,1713971478603,-632.41,0.00012054,2]
[323404152,1713971478613,-938.45,0.00012054,2]
[323404153,1713971478622,-500.0,0.00012054,2]
[323404154,1713971478631,-500.0,0.00012054,2]
[323404155,1713971478641,-500.0,0.00012054,2]
[323404156,1713971478651,-500.0,0.00012054,2]
[323404157,1713971478661,-500.0,0.00012054,2]
[323404158,1713971478670,-1522.84,0.00012054,2]
[323404159,1713971478680,-500.0,0.00012054,2]
[323404160,1713971478689,-500.0,0.00012054,2]
[323404161,1713971478699,-500.0,0.00012054,2]
[323404162,1713971478709,-500.0,0.00012054,2]
[323404163,1713971478718,-500.0,0.00012054,2]
[323404164,1713971478728,-500.0,0.00012054,2]
[323404165,1713971478738,-500.0,0.00012054,2]
[323404166,1713971478748,-500.0,0.00012054,2]
[323404167,1713971478757,-500.0,0.00012054,2]
[323404168,1713971478767,-277.24,0.00012054,2]
[323404169,1713971478779,-500.0,0.00012054,2]
[323404170,1713971478789,-500.0,0.00012054,2]
[323404171,1713971478799,-484.8,0.00012054,2]
[323404172,1713971478809,-703.95,0.00012054,2]
[323404173,1713971478818,-559.36,0.00012054,2]
[323404174,1713971478828,-500.0,0.00012054,2]
[323404175,1713971478838,-500.0,0.00012054,2]
[323404176,1713971478848,-500.0,0.00012054,2]
[323404177,1713971478856,-500.0,0.00012054,2]
[323404178,1713971478866,-500.0,0.00012054,2]
[323404179,1713971478875,-750.77,0.00012054,2]
[323404180,1713971478885,-500.0,0.00012054,2]
[323404181,1713971478895,-500.0,0.00012054,2]
[323404182,1713971478904,-500.0,0.00012054,2]
[323404183,1713971478914,-500.0,0.00012054,2]
[323404184,1713971478923,-571.84,0.00012054,2]
[323404185,1713971478934,-801.18,0.00012054,2]
[323404186,1713971478944,-500.0,0.00012054,2]
[323404187,1713971478954,-500.0,0.00012054,2]
[323404188,1713971478964,-500.0,0.00012054,2]
[323404189,1713971478974,-571.87,0.00012054,2]
[323404190,1713971478984,-757.62,0.00012054,2]
[323404191,1713971478993,-1868.55,0.00012054,2]
[323404192,1713971479003,-500.0,0.00012054,2]
[323404193,1713971479013,-3047.41,0.00012054,2]
[323404194,1713971479022,-500.0,0.00012054,2]
[323404195,1713971479031,-960.72,0.00012054,2]
[323404196,1713971479041,-500.0,0.00012054,2]
[323404197,1713971479051,-738.26,0.00012054,2]
[323404198,1713971479060,-500.0,0.00012054,2]
[323404199,1713971479069,-632.55,0.00012054,2]
[323404200,1713971479079,-500.0,0.00012054,2]
[323404201,1713971479089,-500.0,0.00012054,2]
[323404202,1713971479098,-500.0,0.00012054,2]
[323404203,1713971479109,-500.0,0.00012054,2]
[323404204,1713971479119,-500.0,0.00012054,2]
[323404205,1713971479128,-500.0,0.00012054,2]
[323404206,1713971479138,-500.0,0.00012054,2]
[323404207,1713971479148,-1231.81,0.00012054,2]
[323404208,1713971479158,-500.0,0.00012054,2]
[323404209,1713971479167,-4414.65,0.00012054,2]
[323404210,1713971479176,-500.0,0.00012054,2]
[323404211,1713971479186,-500.0,0.00012054,2]
[323404212,1713971479195,-500.0,0.00012054,2]
[323404213,1713971479205,-500.0,0.00012054,2]
[323404214,1713971479214,-1512.32,0.00012054,2]
[323404215,1713971479223,-500.0,0.00012054,2]
[323404216,1713971479233,-500.0,0.00012054,2]
[323404217,1713971479243,-500.0,0.00012054,2]
[323404218,1713971479252,-1160.08,0.00012054,2]
[323404219,1713971479262,-1014.83,0.00012054,2]
[323404220,1713971479272,-500.0,0.00012054,2]
[323404221,1713971479281,-500.0,0.00012054,2]
[323404222,1713971479290,-500.0,0.00012054,2]
[323404223,1713971479299,-500.0,0.00012054,2]
[323404224,1713971479308,-500.0,0.00012054,2]
[323404225,1713971479318,-500.0,0.00012054,2]
[323404226,1713971479331,-500.0,0.00012054,2]
[323404227,1713971479340,-500.0,0.00012054,2]
[323404228,1713971479349,-334.14,0.00012054,2]
[323404229,1713971479358,-554.94,0.00012054,2]
[323404230,1713971479368,-981.42,0.00012054,2]
[323404231,1713971479377,-1266.64,0.00012054,2]
[323404232,1713971479386,-500.0,0.00012054,2]
[323404233,1713971479396,-2618.92,0.00012054,2]
[323404234,1713971479406,-500.0,0.00012054,2]
[323404235,1713971479416,-167.18,0.00012054,2]
[323404236,1713971479425,-500.0,0.00012054,2]
[323404237,1713971479435,-834.92,0.00012054,2]
[323404238,1713971479444,-500.0,0.00012054,2]
[323404239,1713971479453,-928.86,0.00012054,2]
[323404240,1713971479462,-500.0,0.00012054,2]
[323404241,1713971479471,-500.0,0.00012054,2]
[323404242,1713971479481,-500.0,0.00012054,2]
[323404243,1713971479490,-500.0,0.00012054,2]
[323404244,1713971479500,-2388.92,0.00012054,2]
[323404245,1713971479510,-500.0,0.00012054,2]
[323404246,1713971479521,-500.0,0.00012054,2]
[323404247,1713971479530,-500.0,0.00012054,2]
[323404248,1713971479539,-500.0,0.00012054,2]
[323404249,1713971479549,-500.0,0.00012054,2]
[323404250,1713971479558,-514.18,0.00012054,2]
[323404251,1713971479568,-500.0,0.00012054,2]
[323404252,1713971479578,-500.0,0.00012054,2]
[323404253,1713971479588,-500.0,0.00012054,2]
[323404254,1713971479598,-500.0,0.00012054,2]
[323404255,1713971479608,-583.43,0.00012054,2]
[323404256,1713971479618,-503.96757296,0.00012054,2]
[323404257,1713971479628,-500.0,0.00012054,2]
[323404258,1713971479638,-604.35,0.00012054,2]
[323404259,1713971479648,-471.64,0.00012054,2]
[323404260,1713971479657,-1814.7,0.00012054,2]
[323404261,1713971479667,-4566.79,0.00012054,2]
[323404262,1713971479677,-481.39,0.00012054,2]
[323404263,1713971479687,-500.0,0.00012054,2]
[323404264,1713971479697,-500.0,0.00012054,2]
[323404265,1713971479707,-525.91036189,0.00012054,2]
[323404266,1713971479716,-500.0,0.00012054,2]
[323404267,1713971479725,-500.0,0.00012054,2]
[323404268,1713971479735,-500.0,0.00012054,2]
[323404269,1713971479745,-500.0,0.00012054,2]
[323404270,1713971479755,-500.0,0.00012054,2]
[323404271,1713971479771,-500.0,0.00012054,2]
[323404272,1713971479792,-1008.59,0.00012054,2]
[323404273,1713971479810,-500.0,0.00012054,2]
[323404274,1713971479822,-500.0,0.00012054,2]
[323404275,1713971479838,-657.96,0.00012054,2]
[323404276,1713971479853,-500.0,0.00012054,2]
[323404277,1713971479869,-500.0,0.00012054,2]
[323404278,1713971479884,-263.8,0.00012054,2]
[323404279,1713971479897,-1435.34,0.00012054,2]
[323404280,1713971479912,-500.0,0.00012054,2]
[323404281,1713971479926,-500.0,0.00012054,2]
[323404282,1713971479941,-2224.61,0.00012054,2]
[323404283,1713971479956,-431.67575265,0.00012054,2]
[323404284,1713971479968,-4364.47,0.00012054,2]
[323404285,1713971479985,-500.0,0.00012054,2]
[323404286,1713971480001,-502.55765652,0.00012054,2]
[323404287,1713971480015,-620.67,0.00012054,2]
[323404288,1713971480037,-500.0,0.00012054,2]
[323404289,1713971480052,-500.0,0.00012054,2]
[323404290,1713971480069,-1798.89,0.00012054,2]
[323404291,1713971480085,-500.0,0.00012054,2]
[323404292,1713971480101,-753.37,0.00012054,2]
[323404293,1713971480114,-500.0,0.00012054,2]
[323404294,1713971480126,-500.0,0.00012054,2]
[323404295,1713971480141,-500.0,0.00012054,2]
[323404296,1713971480156,-500.0,0.00012054,2]
[323404297,1713971480171,-1172.56,0.00012054,2]
[323404298,1713971480183,-500.0,0.00012054,2]
[323404299,1713971480197,-1549.65,0.00012054,2]
[323404300,1713971480212,-4633.7,0.00012054,2]
[323404301,1713971480225,-500.0,0.00012054,2]
[323404302,1713971480240,-500.0,0.00012054,2]
[323404303,1713971480255,-2231.62,0.00012054,2]
[323404304,1713971480269,-505.85113241,0.00012054,2]
[323404305,1713971480286,-500.0,0.00012054,2]
[323404306,1713971480299,-500.0,0.00012054,2]
[323404307,1713971480313,-640.91,0.00012054,2]
[323404308,1713971480326,-500.0,0.00012054,2]
[323404309,1713971480340,-569.69,0.00012054,2]
[323404310,1713971480353,-500.0,0.00012054,2]
[323404311,1713971480367,-3857.51,0.00012054,2]
[323404312,1713971480381,-283.81,0.00012054,2]
[323404313,1713971480394,-3186.18,0.00012054,2]
[323404314,1713971480410,-500.0,0.00012054,2]
[323404315,1713971480426,-880.86,0.00012054,2]
[323404316,1713971480440,-1023.52,0.00012054,2]
[323404317,1713971480454,-500.0,0.00012054,2]
[323404318,1713971480469,-1038.57,0.00012054,2]
[323404319,1713971480483,-500.0,0.00012054,2]
[323404320,1713971480496,-1051.25,0.00012054,2]
[323404321,1713971480511,-500.0,0.00012054,2]
[323404322,1713971480530,-500.0,0.00012054,2]
[323404323,1713971480544,-500.0,0.00012054,2]
[323404324,1713971480560,-4170.17,0.00012054,2]
[323404325,1713971480573,-500.0,0.00012054,2]
[323404326,1713971480587,-500.0,0.00012054,2]
[323404327,1713971480601,-712.12,0.00012054,2]
[323404328,1713971480616,-500.0,0.00012054,2]
[323404329,1713971480630,-811.13,0.00012054,2]
[323404330,1713971480645,-500.0,0.00012054,2]
[323404331,1713971480660,-500.0,0.00012054,2]
[323404332,1713971480674,-1516.0,0.00012054,2]
[323404333,1713971480688,-500.0,0.00012054,2]
[323404334,1713971480702,-500.0,0.00012054,2]
[323404335,1713971480717,-500.0,0.00012054,2]
[323404336,1713971480732,-500.0,0.00012054,2]
[323404337,1713971480747,-609.28,0.00012054,2]
[323404338,1713971480761,-500.0,0.00012054,2]
[323404339,1713971480780,-500.0,0.00012054,2]
[323404340,1713971480793,-500.0,0.00012054,2]
[323404341,1713971480807,-2572.9,0.00012054,2]
[323404342,1713971480820,-500.0,0.00012054,2]
[323404343,1713971480834,-500.0,0.00012054,2]
[323404344,1713971480848,-500.0,0.00012054,2]
[323404345,1713971480861,-500.0,0.00012054,2]
[323404346,1713971480875,-500.0,0.00012054,2]
[323404347,1713971480889,-242.8,0.00012054,2]
[323404348,1713971480902,-1704.77,0.00012054,2]
[323404349,1713971480917,-500.0,0.00012054,2]
[323404350,1713971480932,-2085.19,0.00012054,2]
[323404351,1713971480947,-500.0,0.00012054,2]
[323404352,1713971480961,-500.0,0.00012054,2]
[323404353,1713971480975,-688.21,0.00012054,2]
[323404354,1713971480989,-1611.38,0.00012054,2]
[323404355,1713971481003,-500.0,0.00012054,2]
[323404356,1713971481015,-500.0,0.00012054,2]
[323404357,1713971481034,-500.0,0.00012054,2]
[323404358,1713971481047,-1822.99,0.00012054,2]
[323404359,1713971481061,-500.0,0.00012054,2]
[323404360,1713971481075,-621.48774839,0.00012054,2]
[323404361,1713971481090,-500.0,0.00012054,2]
[323404362,1713971481104,-4346.21,0.00012054,2]
[323404363,1713971481118,-4561.56,0.00012054,2]
[323404364,1713971481133,-500.0,0.00012054,2]
[323404365,1713971481147,-1172.2,0.00012054,2]
[323404366,1713971481161,-11758.78,0.00012054,2]
[323404367,1713971481175,-500.0,0.00012054,2]
[323404368,1713971481188,-877.15,0.00012054,2]
[323404369,1713971481202,-500.0,0.00012054,2]
[323404370,1713971481216,-3844.95,0.00012054,2]
[323404371,1713971481231,-500.0,0.00012054,2]
[323404372,1713971481244,-500.0,0.00012054,2]
[323404373,1713971481258,-1396.93,0.00012054,2]
[323404374,1713971481282,-500.0,0.00012054,2]
[323404375,1713971481297,-500.0,0.00012054,2]
[323404376,1713971481311,-24057.34,0.00012054,2]
[323404377,1713971481325,-500.0,0.00012054,2]
[323404378,1713971481342,-404.5035544,0.00012054,2]
[323404379,1713971481356,-570.53,0.00012054,2]
[323404380,1713971481369,-500.0,0.00012054,2]
[323404381,1713971481383,-500.0,0.00012054,2]
[323404382,1713971481395,-946.89,0.00012054,2]
[323404383,1713971481409,-500.0,0.00012054,2]
[323404384,1713971481422,-22807.46,0.00012054,2]
[323404385,1713971481436,-500.0,0.00012054,2]
[323404386,1713971481450,-20856.91,0.00012054,2]
[323404387,1713971481464,-500.0,0.00012054,2]
[323404388,1713971481478,-7901.37,0.00012054,2]
[323404389,1713971481491,-5859.12,0.00012054,2]
[323404390,1713971481504,-3371.32,0.00012054,2]
[323404391,1713971481518,-500.0,0.00012054,2]
[323404392,1713971481539,-8235.63,0.00012054,2]
[323404393,1713971481567,-2169.73,0.00012054,2]
[323404394,1713971481584,-1402.36,0.00012054,2]
[323404395,1713971481602,-1022.8,0.00012054,2]
[323404396,1713971481618,-500.0,0.00012054,2]
[323404397,1713971481635,-500.0,0.00012054,2]
[323404398,1713971481650,-500.0,0.00012054,2]
[323404399,1713971481665,-3366.61,0.00012054,2]
[323404400,1713971481680,-500.0,0.00012054,2]
[323404401,1713971481697,-500.0,0.00012054,2]
[323404402,1713971481712,-11271.93,0.00012054,2]
[323404403,1713971481727,-500.0,0.00012054,2]
[323404404,1713971481742,-500.0,0.00012054,2]
[323404405,1713971481756,-500.0,0.00012054,2]
[323404406,1713971481769,-3149.99,0.00012054,2]
[323404407,1713971481788,-500.0,0.00012054,2]
[323404408,1713971481802,-700.26,0.00012054,2]
[323404409,1713971481817,-500.0,0.00012054,2]
[323404410,1713971481831,-1077.52,0.00012054,2]
[323404411,1713971481846,-500.0,0.00012054,2]
[323404412,1713971481858,-500.0,0.00012054,2]
[323404413,1713971481872,-500.0,0.00012054,2]
[323404414,1713971481885,-500.0,0.00012054,2]
[323404415,1713971481898,-500.0,0.00012054,2]
[323404416,1713971481911,-13896.41,0.00012054,2]
[323404417,1713971481924,-500.0,0.00012054,2]
[323404418,1713971481938,-2645.0,0.00012054,2]
[323404419,1713971481950,-500.0,0.00012054,2]
[323404420,1713971481964,-500.0,0.00012054,2]
[323404421,1713971481977,-500.0,0.00012054,2]
[323404422,1713971481990,-500.0,0.00012054,2]
[323404423,1713971482002,-794.05,0.00012054,2]
[323404424,1713971482015,-500.0,0.00012054,2]
[323404425,1713971482031,-500.0,0.00012054,2]
[323404426,1713971482043,-5136.7,0.00012054,2]
[323404427,1713971482056,-2121.92,0.00012054,2]
[323404428,1713971482069,-500.0,0.00012054,2]
[323404429,1713971482082,-500.0,0.00012054,2]
[323404430,1713971482094,-500.0,0.00012054,2]
[323404431,1713971482106,-1006.55,0.00012054,2]
[323404432,1713971482118,-500.0,0.00012054,2]
[323404433,1713971482130,-500.0,0.00012054,2]
[323404434,1713971482142,-500.0,0.00012054,2]
[323404435,1713971482154,-500.0,0.00012054,2]
[323404436,1713971482166,-500.0,0.00012054,2]
[323404437,1713971482179,-500.0,0.00012054,2]
[323404438,1713971482191,-500.0,0.00012054,2]
[323404439,1713971482203,-530.96,0.00012054,2]
[323404440,1713971482216,-555.9,0.00012054,2]
[323404441,1713971482229,-500.0,0.00012054,2]
[323404442,1713971482241,-3852.42,0.00012054,2]
[323404443,1713971482253,-1567.09,0.00012054,2]
[323404444,1713971482266,-500.0,0.00012054,2]
[323404445,1713971482286,-2728.08,0.00012054,2]
[323404446,1713971482299,-500.0,0.00012054,2]
[323404447,1713971482311,-1445.4,0.00012054,2]
[323404448,1713971482324,-1239.48,0.00012054,2]
[323404449,1713971482341,-500.0,0.00012054,2]
[323404450,1713971482354,-500.0,0.00012054,2]
[323404451,1713971482367,-4557.06,0.00012054,2]
[323404452,1713971482380,-500.0,0.00012054,2]
[323404453,1713971482393,-500.0,0.00012054,2]
[323404454,1713971482406,-3462.5,0.00012054,2]
[323404455,1713971482419,-1128.75,0.00012054,2]
[323404456,1713971482431,-1371.31,0.00012054,2]
[323404457,1713971482444,-4632.78,0.00012054,2]
[323404458,1713971482459,-4574.78,0.00012054,2]
[323404459,1713971482472,-500.0,0.00012054,2]
[323404460,1713971482486,-500.0,0.00012054,2]
[323404461,1713971482498,-500.0,0.00012054,2]
[323404462,1713971482511,-4829.3,0.00012054,2]
[323404463,1713971482531,-9101.65,0.00012054,2]
[323404464,1713971482543,-500.0,0.00012054,2]
[323404465,1713971482556,-6293.29,0.00012054,2]
[323404466,1713971482570,-500.0,0.00012054,2]
[323404467,1713971482582,-500.0,0.00012054,2]
[323404468,1713971482595,-12365.63,0.00012054,2]
[323404469,1713971482609,-500.0,0.00012054,2]
[323404470,1713971483036,-500.0,0.00012054,2]
[323404471,1713971483075,-4021.46,0.00012054,2]
[323404472,1713971483096,-500.0,0.00012054,2]
[323404473,1713971483108,-5842.31,0.00012054,2]
[323404474,1713971483117,-2123.91,0.00012054,2]
[323404475,1713971483127,-500.0,0.00012054,2]
[323404476,1713971483137,-500.0,0.00012054,2]
[323404477,1713971483146,-2828.68,0.00012054,2]
[323404478,1713971483156,-6412.45,0.00012054,2]
[323404479,1713971483165,-683.35,0.00012054,2]
[323404480,1713971483175,-4064.0,0.00012054,2]
[323404481,1713971483184,-500.0,0.00012054,2]
[323404482,1713971483193,-500.0,0.00012054,2]
[323404483,1713971483203,-500.0,0.00012054,2]
[323404484,1713971483212,-5147.12,0.00012054,2]
[323404485,1713971483222,-10655.34,0.00012054,2]
[323404486,1713971483231,-3542.31,0.00012054,2]
[323404487,1713971483240,-500.0,0.00012054,2]
[323404488,1713971483249,-500.0,0.00012054,2]
[323404489,1713971483259,-500.0,0.00012054,2]
[323404490,1713971483268,-5581.45,0.00012054,2]
[323404491,1713971483280,-500.0,0.00012054,2]
[323404492,1713971483289,-500.0,0.00012054,2]
[323404493,1713971483301,-500.0,0.00012054,2]
[323404494,1713971483310,-2316.41,0.00012054,2]
[323404495,1713971483321,-500.0,0.00012054,2]
[323404496,1713971483331,-19318.67,0.00012054,2]
[323404497,1713971483340,-941.61,0.00012054,2]
[323404498,1713971483350,-500.0,0.00012054,2]
[323404499,1713971483359,-3933.71,0.00012054,2]
[323404500,1713971483371,-2747.31,0.00012054,2]
[323404501,1713971483381,-1364.05,0.00012054,2]
[323404502,1713971483390,-500.0,0.00012054,2]
[323404503,1713971483399,-1069.73,0.00012054,2]
[323404504,1713971483411,-2109.48,0.00012054,2]
[323404505,1713971483421,-500.0,0.00012054,2]
[323404506,1713971483431,-500.0,0.00012054,2]
[323404507,1713971483442,-500.0,0.00012054,2]
[323404508,1713971483451,-500.0,0.00012054,2]
[323404509,1713971483460,-500.0,0.00012054,2]
[323404510,1713971483470,-6056.82,0.00012054,2]
[323404511,1713971483480,-5584.64,0.00012054,2]
[323404512,1713971483490,-1076.15,0.00012054,2]
[323404513,1713971483500,-11108.74,0.00012054,2]
[323404514,1713971483510,-557.84520397,0.00012054,2]
[323404515,1713971483519,-9374.05,0.00012054,2]
[323404516,1713971483531,-4688.69,0.00012054,2]
[323404517,1713971483540,-2897.45,0.00012054,2]
[323404518,1713971483550,-502.95,0.00012054,2]
[323404519,1713971483559,-33558.3,0.00012054,2]
[323404520,1713971483568,-500.0,0.00012054,2]
[323404521,1713971483577,-505.42044387,0.00012054,2]
[323404522,1713971483587,-500.0,0.00012054,2]
[323404523,1713971483596,-2104.85,0.00012054,2]
[323404524,1713971483606,-897.93,0.00012054,2]
[323404525,1713971483615,-2539.44,0.00012054,2]
[323404526,1713971483625,-2229.71,0.00012054,2]
[323404527,1713971483635,-7410.74,0.00012054,2]
[323404528,1713971483644,-500.0,0.00012054,2]
[323404529,1713971483658,-500.0,0.00012054,2]
[323404530,1713971483667,-500.0,0.00012054,2]
[323404531,1713971483677,-560.7,0.00012054,2]
[323404532,1713971483686,-2218.82,0.00012054,2]
[323404533,1713971483695,-500.0,0.00012054,2]
[323404534,1713971483704,-1376.33,0.00012054,2]
[323404535,1713971483713,-1396.88,0.00012054,2]
[323404536,1713971483722,-4637.36,0.00012054,2]
[323404537,1713971483732,-3302.52,0.00012054,2]
[323404538,1713971483743,-500.0,0.00012054,2]
[323404539,1713971483754,-2517.66,0.00012054,2]
[323404540,1713971483763,-500.0,0.00012054,2]
[323404541,1713971483773,-6389.72,0.00012054,2]
[323404542,1713971483784,-2232.11,0.00012054,2]
[323404543,1713971483795,-500.0,0.00012054,2]
[323404544,1713971483804,-2969.59,0.00012054,2]
[323404545,1713971483815,-500.0,0.00012054,2]
[323404546,1713971483824,-500.0,0.00012054,2]
[323404547,1713971483834,-500.0,0.00012054,2]
[323404548,1713971483844,-500.0,0.00012054,2]
[323404549,1713971483854,-500.0,0.00012054,2]
[323404550,1713971483863,-500.0,0.00012054,2]
[323404551,1713971483874,-500.0,0.00012054,2]
[323404552,1713971483883,-3068.67,0.00012054,2]
[323404553,1713971483893,-500.0,0.00012054,2]
[323404554,1713971483903,-712.55,0.00012054,2]
[323404555,1713971483912,-1633.89,0.00012054,2]
[323404556,1713971483922,-4703.73,0.00012054,2]